Cogmind - Beta 17 @@@ ROGUE MODE // 2026.07.29 @ 16:57:05 Player: Lazz Result: Destroyed by Y-72 Warden with Quantum Rifle Performance ------------- Evolutions (6) 3000 Regions Visited (12) 2400 Robots Destroyed (121) 605 Value Destroyed (4140) 4140 Prototype IDs (14) 280 Alien Tech Used (0) 0 Bonus (1660) 1660 TOTAL SCORE: 12085 Bonus ------- Entered DSFs 500 Met Warlord at Base 500 MAIN.C Attacked Warlord 500 Warlord Defense Kills 160 Cogmind --------- Core Integrity 0/1150 Matter 178/300 Energy 74/100 System Corruption 6% Temperature Cool (9) Movement Core (50) Location -4/Factory Parts ------- > --- POWER (3) -------- (None) > --- PROPULSION (5) --- (None) > --- UTILITY (8) ------ Improved Signal Interpreter Experimental Core Analyzer > --- WEAPON (3) ------- (None) > --- INVENTORY (5) ---- Armored Medium Treads Hardened Heavy Armor Plating Hacking Suite Hacking Suite Peak State ------------ > --- POWER ------------ Light Antimatter Reactor Vortex Chain Reactor > --- PROPULSION ------- Myomer Leg Enhanced Biometal Leg Enhanced Biometal Leg Experimental Myomer Leg Experimental Myomer Leg > --- UTILITY ---------- High-capacity Storage Unit Improved Signal Interpreter Experimental Core Analyzer Improved Transmission Jammer Centrium Light Armor Plating Centrium Medium Armor Plating Advanced Remote Force Field System Mapper > --- WEAPON ----------- Coil Gun Coil Gun Plasma Lance > --- INVENTORY -------- Armored Medium Treads Armored Medium Treads Armored Leg Improved Cryofiber Web Advanced Heat Sink Advanced Cooling System Improved Terrain Scanner Improved Terrain Scan Processor Hardened Heavy Armor Plating Layered Light Armor Plating Makeshift Ablative Armor Hacking Suite Hacking Suite Advanced System Shield Thermoblaster [Rating: 150] Favorites ----------- Power Light Nuclear Core Engine Light Angular Momentum Engine Power Core Light Nuclear Core Reactor Vortex Chain Reactor Propulsion Armored Treads Treads Armored Treads Leg Experimental Myomer Leg Wheel Armored Huge Wheel Hover Unit Backup Propulsion III Utility High-capacity Storage Unit Device Advanced Heat Sink Storage High-capacity Storage Unit Processor Core Analyzer Hackware Hacking Suite Protection Medium Reactive Plating Weapon Field Laser Energy Gun Field Laser Ballistic Gun Coil Gun Ballistic Cannon Enhanced Gauss Cannon Launcher Rocket Launcher Piercing Weapon Plasma Lance Build | -11 -10 -9 -8 -7 -6 -6 -5 -5 -5 -5 -4 -4 ------- Run | Yrd Mat Mat Mat Fac Fac DSF Fac Upp Upp War Pro Fac Slots Evolved 12 | . . 2 2 2 2 . 2 . . . . 2 Power 2 | . . . . . 1 . . . . . . 1 Propulsion 3 | . . 1 . 1 . . . . . . . 1 Utility 6 | . . . 2 1 1 . 2 . . . . . Weapon 1 | . . 1 . . . . . . . . . . Parts Attached 100 | 6 1 10 8 10 2 3 14 2 3 28 2 11 Power 11 | 1 . 1 1 . 1 1 2 1 . 2 . 1 Engine 6 | 1 . 1 . . 1 1 1 1 . . . . Core 2 | . . . 1 . . . 1 . . . . . Reactor 3 | . . . . . . . . . . 2 . 1 Propulsion 23 | 2 . 3 . 2 . 1 2 . 1 10 . 2 Treads 8 | . . 3 . 2 . . 1 . . 2 . . Leg 11 | 2 . . . . . . 1 . . 6 . 2 Wheel 2 | . . . . . . 1 . . 1 . . . Hover 2 | . . . . . . . . . . 2 . . Flight . | . . . . . . . . . . . . . Utility 40 | 1 1 2 5 4 1 1 6 1 1 10 1 6 Device 18 | . . 1 4 1 1 1 1 1 . 4 1 3 Storage 3 | 1 . 1 . . . . . . . 1 . . Processor 5 | . 1 . . 1 . . . . 1 1 . 1 Hackware 5 | . . . . 1 . . 2 . . 1 . 1 Protection 9 | . . . 1 1 . . 3 . . 3 . 1 Artifact . | . . . . . . . . . . . . . Weapon 26 | 2 . 4 2 4 . . 4 . 1 6 1 2 Energy Gun 19 | 2 . 3 2 3 . . 3 . 1 4 1 . Energy Cannon . | . . . . . . . . . . . . . Ballistic Gun 3 | . . 1 . . . . . . . . . 2 Ballistic Cannon 1 | . . . . . . . 1 . . . . . Launcher 2 | . . . . 1 . . . . . 1 . . Special Weapon . | . . . . . . . . . . . . . Impact Weapon . | . . . . . . . . . . . . . Slashing Weapon . | . . . . . . . . . . . . . Piercing Weapon 1 | . . . . . . . . . . 1 . . Special Melee Weapon . | . . . . . . . . . . . . . Unidentified Prototypes 12 | . . 1 . . . . . . . 10 . 1 Parts Lost 53 | . . . . 1 . 4 4 . 3 16 2 23 Power 6 | . . . . . . 1 1 . . 2 . 2 Propulsion 13 | . . . . . . 3 1 . . 3 . 6 Utility 17 | . . . . . . . . . 2 6 1 8 Weapon 17 | . . . . 1 . . 2 . 1 5 1 7 Highest Loss Streak 19 | . . . . 1 . 4 1 . 1 15 2 19 To Critical Strikes 1 | . . . . . . . . . . 1 . . Average Backups 17 | 2 5 11 19 18 17 18 19 19 18 18 18 14 Power . | . . 1 1 1 . . . . . . . . Propulsion 1 | . . . 1 1 2 1 . 1 1 1 3 2 Utility 11 | 1 3 3 10 11 11 11 11 13 13 13 12 11 Weapon 4 | 1 2 5 6 4 4 5 7 5 4 3 2 1 Tool/Special . | . . . . . . . . . . . . . Unused Backups 22 | . . . 7 1 . . 3 . . 4 1 6 Power . | . . . . . . . . . . . . . Propulsion 3 | . . . . . . . 1 . . 1 1 . Utility 15 | . . . 4 . . . 2 . . 3 . 6 Weapon 4 | . . . 3 1 . . . . . . . . Tool/Special . | . . . . . . . . . . . . . Average Slot Usage (%) 88 | . 88 96 98 99 97 93 90 84 86 80 89 79 Engine 4 | . 14 11 2 . 6 8 10 2 5 5 . . Core 2 | . . . 6 7 6 3 . 5 5 3 . . Treads 10 | . . 26 27 30 26 17 5 5 5 3 . . Leg 5 | . 28 4 . . . . 1 . . 1 23 23 Wheel 2 | . . . . . . 3 4 5 5 3 . . Device 12 | . . 3 18 13 10 18 17 17 16 8 11 10 Storage 6 | . 14 11 9 7 6 6 5 5 5 5 5 4 Processor 6 | . 2 7 . 6 6 6 5 5 9 11 8 9 Hackware 5 | . . . . 1 6 1 6 11 11 8 5 4 Protection 6 | . . . 7 6 6 6 9 5 1 4 11 7 Energy Gun 16 | . 28 29 27 22 20 20 16 17 16 12 7 1 Peak Build Rating 150 | 6 10 27 37 45 51 56 76 77 78 130 130 150 Average Rating 67 | 5 6 23 34 43 50 52 68 74 76 76 123 123 On Entrance 53 | . 6 10 27 37 44 51 55 70 77 74 128 122 Avg Prop Armor Cover (%) 10 | . . . . . . 10 9 11 8 11 . . Naked Turns . | . . . . . . . . . . . . . Heaviest Build 129 | 13 13 58 61 66 77 84 127 77 77 104 123 129 Greatest Support 135 | 20 20 60 60 80 80 80 70 28 70 100 96 135 Greatest Overweight (x) 16 | . . 2 1 . . 2 4 2 2 16 1 1 Average Overweight (x) 1 | . . . . . . 1 3 2 . 2 1 . Largest Inventory Capacity 20 | 8 8 20 20 20 20 20 20 20 20 20 20 20 Average Capacity 19 | 7 8 18 20 20 20 20 20 20 20 20 20 18 Most Carried 20 | 4 6 18 20 20 19 20 20 20 20 20 20 18 Average Carried 18 | 2 5 11 19 19 18 19 19 20 19 19 19 15 Final Capacity 20 | 8 8 20 20 20 20 20 20 20 20 20 20 5 Final Carried 20 | 4 6 18 20 20 18 20 20 20 20 20 19 5 Class Distribution -------------------- 28% | Hacker-Tank 21% | Tank 9% | Mutant 9% | Scavenger-Tank 9% | Gunner 8% | Scavenger-Mutant 5% | Hacker-Gunner 3% | Hacker-Mutant 3% | Skirmisher Dominant Class ---------------- Mutant | -10/Materials Skirmisher | -9/Materials Tank | -8/Materials Gunner | -7/Factory Gunner | -6/Factory Tank | -6/DSF Tank | -5/Factory Hacker-Tank | -5/Upper Caves Hacker-Tank | -5/Upper Caves Hacker-Tank | -5/Warlord Scavenger-Tank | -4/Proximity Caves Scavenger-Mutant | -4/Factory Resources | -11 -10 -9 -8 -7 -6 -6 -5 -5 -5 -5 -4 -4 ----------- Run | Yrd Mat Mat Mat Fac Fac DSF Fac Upp Upp War Pro Fac Matter Collected 1532 | 260 10 100 90 128 . 40 250 39 36 303 115 161 Remotely . | . . . . . . . . . . . . . Salvage Created 4990 | 197 54 314 1315 305 . 187 1571 183 155 76 184 449 Parts 198 | 14 2 14 63 12 . 10 41 6 1 7 13 15 Haulers Intercepted 4 | . . . 4 . . . . . . . . . Recyclers Shooed 2 | . . . . . . . 2 . . . . . Parts Field Recycled . | . . . . . . . . . . . . . Retrieved Matter . | . . . . . . . . . . . . . Parts Self-Destructed 19 | . . . . . . . . 6 2 . 11 . Prevented 12 | . . . . . . . . 2 10 . . . Parts Restored . | . . . . . . . . . . . . . Kills | -11 -10 -9 -8 -7 -6 -6 -5 -5 -5 -5 -4 -4 ------- Run | Yrd Mat Mat Mat Fac Fac DSF Fac Upp Upp War Pro Fac Combat Hostiles Destroyed 94 | . . 6 26 9 . 3 26 2 3 3 11 5 Melee 3 | . . . . . . . . . . . . 3 Guns 73 | . . 6 26 3 . 3 21 2 3 3 5 1 Cannons 3 | . . . . . . . . . . . 3 . AOE 11 | . . . . 6 . . 1 . . . 3 1 Classes Destroyed 18 | 3 2 2 5 2 . 1 . 1 . 1 1 . Worker 5 | 2 . . 1 . . . 2 . . . . . Builder 1 | . 1 . . . . . . . . . . . Tunneler 6 | 5 . . . 1 . . . . . . . . Hauler 4 | . . . 4 . . . . . . . . . Recycler 5 | 1 . 1 1 . . . 1 . . . . 1 Minesweeper 1 | . . . . . . . . 1 . . . . Mechanic 2 | . 1 . . . . . 1 . . . . . Operator 1 | . . . 1 . . . . . . . . . Drone 2 | . . . . . . . . . . . 2 . Watcher 2 | . . 1 1 . . . . . . . . . Swarmer 33 | . . . 11 3 . . 9 . 1 . 9 . Saboteur 2 | . . . . . . . . . . 2 . . Grunt 25 | . . 6 6 3 . . 6 2 1 1 . . Brawler 2 | . . . . 1 . . 1 . . . . . Sentry 14 | . . . 7 1 . . 5 . 1 . . . Specialist 3 | . . . . . . 3 . . . . . . Hunter 7 | . . . 2 . . . 1 . . . . 4 Programmer 6 | . . . . 1 . . 4 . . . . 1 Best Kill Streak 7 | 7 1 3 6 7 . 3 6 2 2 2 4 3 Combat Bots Only 7 | . . 2 6 7 . 3 6 2 2 2 4 2 Max Kills in Single Turn 4 | 1 1 1 2 4 . 1 2 1 1 1 2 1 Gunslinging 1 | . . . 1 . . . 1 . . . . . Exploded 4 | . . . . 4 . . 1 . . . 2 1 Melee 1 | . . . . . . . . . . . . 1 Uniques/NPCs Destroyed . | . . . . . . . . . . . . . Combat | -11 -10 -9 -8 -7 -6 -6 -5 -5 -5 -5 -4 -4 -------- Run | Yrd Mat Mat Mat Fac Fac DSF Fac Upp Upp War Pro Fac Hostile Shots Fired 1257 | . . 30 97 55 . 41 181 7 29 163 118 536 Missed 371 | . . 10 21 21 . 12 51 3 7 57 38 151 Hits 886 | . . 20 76 34 . 29 130 4 22 106 80 385 Melee 12 | . . . . . . 1 . . . 11 . . Projectile 874 | . . 20 76 34 . 28 130 4 22 95 80 385 AOE 3 | . . . . . . . 1 . . 2 . . Critical Strikes 22 | . . 1 . . . 2 8 . . 3 2 6 Damage Taken 11929 | . . 266 979 347 . 512 1976 55 280 2144 935 4435 Core 2043 | . . 13 67 13 . 64 145 15 18 424 111 1173 Absorbed by Shields 2182 | . . . . . . 185 226 . . . 592 1179 Reduced by Siege Mode 4 | . . . . . . . . . 4 . . . Redirected to Shielding 61 | . . . 37 24 . . . . . . . . Ignored by Resistances 476 | . . . . . . . 234 20 62 160 . . Regen/Repaired (Parts) 415 | . . . . . . . 157 . . 258 . . Core Remaining (%) 85 | 100 100 96 87 98 . 92 . . . . 28 . Volleys Fired 257 | 16 5 19 65 11 . 7 67 12 9 13 18 15 Largest 3 | 2 2 3 3 3 . 3 3 3 3 3 3 3 Hottest 382 | 90 90 189 189 189 . 189 201 201 201 260 382 320 Shots Fired 705 | 32 10 47 195 30 . 21 201 34 28 31 45 31 Gun 671 | 32 10 47 195 27 . 21 199 34 28 30 24 24 Cannon 18 | . . . . . . . . . . . 14 4 Launcher 16 | . . . . 3 . . 2 . . 1 7 3 Special . | . . . . . . . . . . . . . Kinetic 38 | . . . . . . . . . . . 14 24 Thermal 657 | 32 10 47 195 27 . 21 199 34 28 31 26 7 Explosive 10 | . . . . 3 . . 2 . . . 5 . Electromagnetic . | . . . . . . . . . . . . . Robot Hit Streak 23 | 11 5 6 22 6 . 16 23 13 14 10 6 5 Robot Miss Streak 8 | 1 2 2 5 3 . 2 8 1 1 5 6 4 Penetration Max 1 | . . . . . . . . . . . . 1 Secondary Targets 6 | . . . 2 . . . 3 . . 1 . . Max Gunslinging Chain 1 | . . . 1 . . . 1 . . 1 . . Shots Hit Robots 466 | 22 7 26 113 18 . 17 145 23 19 23 15 38 Core Hits 228 | 9 3 10 51 19 . 7 68 11 8 16 13 13 Critical Kills 1 | . . . . . . . . . . . . 1 Critical Parts Destroyed . | . . . . . . . . . . . . . Critical Strikes 27 | . 1 1 4 . . 1 8 3 . 3 4 2 Burn 24 | . 1 1 4 . . 1 8 3 . 3 3 . Destroy 1 | . . . . . . . . . . . . 1 Blast 1 | . . . . . . . . . . . 1 . Impale 1 | . . . . . . . . . . . . 1 Melee Attacks 39 | . . . . . . . . . . 9 . 30 Impact . | . . . . . . . . . . . . . Slashing . | . . . . . . . . . . . . . Piercing 39 | . . . . . . . . . . 9 . 30 Sneak Attacks 3 | . . . . . . . . . . . . 3 Combat Hostiles 1 | . . . . . . . . . . . . 1 Follow-up Attacks . | . . . . . . . . . . . . . Damage Inflicted 10574 | 255 85 445 1960 849 . 312 3038 429 351 499 688 1663 Guns 8017 | 255 85 445 1960 350 . 287 2749 429 351 499 177 430 Cannons 194 | . . . . . . . . . . . 166 28 Explosions 1393 | . . . . 499 . . 289 . . . 345 260 Melee 945 | . . . . . . . . . . . . 945 Ramming 25 | . . . . . . 25 . . . . . . Kinetic 536 | . . . . . . . . . . . 166 370 Thermal 8076 | 255 85 445 1960 421 . 287 2749 429 351 499 247 348 Explosive 894 | . . . . 428 . . 191 . . . 275 . Electromagnetic 98 | . . . . . . . 98 . . . . . Impact . | . . . . . . . . . . . . . Slashing . | . . . . . . . . . . . . . Piercing 945 | . . . . . . . . . . . . 945 Highest Corruption 6 | . . . 2 3 . . 6 6 6 6 . 6 Average Corruption 5 | . . . 2 2 . . 4 6 6 6 . 4 Corruption Purged . | . . . . . . . . . . . . . Corruption Blocked . | . . . . . . . . . . . . . Effects 59 | . . . . 1 . . 25 13 16 2 . 2 Message Errors 9 | . . . . . . . 5 3 1 . . . Matter Fused 10 | . . . . . . . 6 3 . 1 . . Heat Flow Errors 10 | . . . . . . . 3 1 4 1 . 1 Energy Discharges 5 | . . . . . . . 1 2 2 . . . Parts Rejected 2 | . . . . . . . 2 . . . . . Data Loss (minor) 14 | . . . . 1 . . 4 3 5 . . 1 Data Loss (major) 2 | . . . . . . . 1 . 1 . . . Misfires 5 | . . . . . . . 2 1 2 . . . Weapon Failures 2 | . . . . . . . 1 . 1 . . . Overload Shots . | . . . . . . . . . . . . . Overflow Damage 92 | . . . . . . . . . . . . 92 Projectiles . | . . . . . . . . . . . . . Explosions 52 | . . . . . . . . . . . . 52 Melee 40 | . . . . . . . . . . . . 40 Knockbacks . | . . . . . . . . . . . . . Impact . | . . . . . . . . . . . . . Kinetic . | . . . . . . . . . . . . . Secondary . | . . . . . . . . . . . . . Self-Inflicted Damage 12 | . . . . . . 12 . . . . . . Shots . | . . . . . . . . . . . . . Rammed 3 | . . . . . . 3 . . . . . . Targets Rammed 3 | . . . . . . 3 . . . . . . Kicked . | . . . . . . . . . . . . . Crushed . | . . . . . . . . . . . . . Highest Temperature 563 | 120 90 409 347 66 . 7 312 163 105 200 454 563 Average Temperature 95 | 40 36 188 83 26 . 7 69 86 29 103 117 117 Received Heat Transfer 2047 | . . 174 234 105 . 94 313 36 102 177 58 754 Effects 6 | . . 3 . . . . . . . 1 . 2 Shutdowns 1 | . . 1 . . . . . . . . . . Energy Bleed 2 | . . . . . . . . . . 1 . 1 Interference 2 | . . 2 . . . . . . . . . . Matter Decay 1 | . . . . . . . . . . . . 1 Siege Activations 1 | . . . . . . . . . 1 . . . Total Turns 22 | . . . . . . . . . 22 . . . Longest Duration 22 | . . . . . . . . . 22 . . . Martial Activations . | . . . . . . . . . . . . . Shielding Activations . | . . . . . . . . . . . . . Robots Disrupted . | . . . . . . . . . . . . . Combat Hostiles . | . . . . . . . . . . . . . Robots Corrupted . | . . . . . . . . . . . . . Combat Hostiles . | . . . . . . . . . . . . . Parts Fried . | . . . . . . . . . . . . . Impact Corruptions . | . . . . . . . . . . . . . Robots Melted 4 | . . . . . . . 4 . . . . . Combat Hostiles 4 | . . . . . . . 4 . . . . . Parts Melted 59 | 1 2 . 15 4 . 3 29 3 2 . . . Heat Transferred 18407 | 694 285 1036 4514 753 . 703 6105 1073 703 1254 767 520 Parts Sabotaged 2 | . . . . . . . . . . 2 . . Parts Stolen . | . . . . . . . . . . . . . Parts Stripped . | . . . . . . . . . . . . . Power Chain Reactions . | . . . . . . . . . . . . . Alert | -11 -10 -9 -8 -7 -6 -6 -5 -5 -5 -5 -4 -4 ------- Run | Yrd Mat Mat Mat Fac Fac DSF Fac Upp Upp War Pro Fac Maximum Alert Level 1 | . . . 1 1 . . 1 . . . . 1 Low Security (%) 83 | 100 100 100 79 69 100 100 95 . . . . 35 Level 1 16 | . . . 20 30 . . 4 . . . . 64 Level 2 . | . . . . . . . . . . . . . Level 3 . | . . . . . . . . . . . . . Level 4 . | . . . . . . . . . . . . . Level 5 . | . . . . . . . . . . . . . High Security . | . . . . . . . . . . . . . Max Security . | . . . . . . . . . . . . . Peak Influence 331 | 10 5 122 331 238 93 125 293 . . . . 323 Initial 323 | . . 1 34 147 89 65 65 . . . . 323 Average 97 | 1 . 40 145 120 89 91 57 . . . . 220 Influence Increases 3373 | 40 10 212 749 396 4 100 802 50 90 210 225 485 Destroy 0b10 Robot/C 1840 | . . 120 520 180 . 60 520 40 60 60 180 100 Destroy 0b10 Robot/NC 150 | 40 10 10 40 5 . . 20 10 . . 10 5 Destroy Leader 382 | . . 22 140 40 . 10 120 . . . 20 30 Successful Hack 47 | . . . . 7 4 . 36 . . . . . Disable Machine 150 | . . 30 . 105 . . 15 . . . . . Destroy Structure 99 | . . . 4 59 . . 16 . . . . 20 Advance Influence 300 | . . . . . . . . . . . . 300 Partial Spotted 15 | . . . . . . . . . . . . 15 Lose Combat Pursuer 390 | . . 30 45 . . 30 75 . 30 150 15 15 Influence Decreases 3373 | 40 5 135 506 537 95 68 638 322 107 210 187 523 Entered New Map 540 | . . 4 48 178 95 28 60 108 4 . . 15 Time Decay 2046 | 40 5 131 458 205 . . 442 214 93 83 187 188 Search Patrol Dispatched 100 | . . . . . . . . . . . . 100 Lost Part 437 | . . . . 10 . 40 30 . 10 127 . 220 Purge Threat 250 | . . . . 144 . . 106 . . . . . Squads Dispatched 20 | . 1 3 3 1 . 1 8 . . . . 3 Investigation 2 | . . . . . . . 2 . . . . . Extermination 3 | . . . . 1 . . 2 . . . . . Reinforcement 9 | . 1 3 1 . . 1 . . . . . 3 Assault . | . . . . . . . . . . . . . Garrison 6 | . . . 2 . . . 4 . . . . . Intercept . | . . . . . . . . . . . . . Searches Triggered 1 | . . . . . . . . . . . . 1 Construction Impeded . | . . . . . . . . . . . . . Haulers Reinforced 1 | . . . . . . . . . . . . 1 Active Scanning Responses . | . . . . . . . . . . . . . Cargo Convoy Interrupts . | . . . . . . . . . . . . . Stealth | -11 -10 -9 -8 -7 -6 -6 -5 -5 -5 -5 -4 -4 --------- Run | Yrd Mat Mat Mat Fac Fac DSF Fac Upp Upp War Pro Fac Distress Signals 9 | . 1 2 3 . . . 1 . . 1 1 . Communications Jammed 110 | . . . . . . . 12 . . . . 98 Distress Signals 109 | . . . . . . . 11 . . . . 98 Times Spotted 176 | . 2 11 34 12 . 6 33 2 10 29 14 23 Peak Tracking Total 13 | . 1 7 6 7 . 4 5 2 5 11 4 13 Tactical Retreats 20 | . . 1 2 . . 2 4 . 2 7 1 1 Traps | -11 -10 -9 -8 -7 -6 -6 -5 -5 -5 -5 -4 -4 ------- Run | Yrd Mat Mat Mat Fac Fac DSF Fac Upp Upp War Pro Fac Traps Triggered 2 | . . . 1 . . 1 . . . . . . Indirectly . | . . . . . . . . . . . . . Trap Hack Attempts . | . . . . . . . . . . . . . Triggered . | . . . . . . . . . . . . . Disarmed . | . . . . . . . . . . . . . Reprogrammed . | . . . . . . . . . . . . . Reused . | . . . . . . . . . . . . . Traps Extracted . | . . . . . . . . . . . . . Installed . | . . . . . . . . . . . . . Triggered . | . . . . . . . . . . . . . Machines | -11 -10 -9 -8 -7 -6 -6 -5 -5 -5 -5 -4 -4 ---------- Run | Yrd Mat Mat Mat Fac Fac DSF Fac Upp Upp War Pro Fac Machines Disabled 12 | . . 2 . 7 . . 1 . . 2 . . Max in Single Turn 4 | . . 1 . 4 . . 1 . . 2 . . Machines Repaired . | . . . . . . . . . . . . . Machines Dismantled . | . . . . . . . . . . . . . Machines Sabotaged . | . . . . . . . . . . . . . Overloaded Fab Kills . | . . . . . . . . . . . . . Hacking | -11 -10 -9 -8 -7 -6 -6 -5 -5 -5 -5 -4 -4 --------- Run | Yrd Mat Mat Mat Fac Fac DSF Fac Upp Upp War Pro Fac Machines Accessed 18 | . . 1 1 2 1 . 7 . . 6 . . Terminals 8 | . . 1 . 2 1 . 4 . . . . . Fabricators . | . . . . . . . . . . . . . Repair Stations 1 | . . . . . . . 1 . . . . . Recycling Units . | . . . . . . . . . . . . . Scanalyzers 2 | . . . 1 . . . 1 . . . . . Garrison Access 1 | . . . . . . . 1 . . . . . Total Hacks 32 | . . 1 2 7 1 . 15 . . 6 . . Successful 19 | . . 1 1 6 1 . 4 . . 6 . . Failed 12 | . . . . 1 . . 11 . . . . . Catastrophic 4 | . . . . . . . 4 . . . . . Database Lockouts 1 | . . . 1 . . . . . . . . . Manual 7 | . . 1 . 5 . . . . . 1 . . Terminals 18 | . . 1 . 7 1 . 9 . . . . . Fabricators . | . . . . . . . . . . . . . Repair Stations 3 | . . . . . . . 3 . . . . . Recycling Units . | . . . . . . . . . . . . . Scanalyzers 4 | . . . 2 . . . 2 . . . . . Garrison Access 1 | . . . . . . . 1 . . . . . Terminal Hacks 13 | . . 1 . 4 1 . 1 . . 6 . . Record 5 | . . . . . . . . . . 5 . . Robot Analysis 2 | . . 1 . 1 . . . . . . . . Prototype ID Bank 1 | . . . . 1 . . . . . . . . Open Door 1 | . . . . . . . . . . 1 . . Open DSF 1 | . . . . . 1 . . . . . . . Branch Access Points 1 | . . . . 1 . . . . . . . . Unreport Threat 2 | . . . . 1 . . 1 . . . . . Fabricator Hacks . | . . . . . . . . . . . . . Repair Station Hacks 2 | . . . . . . . 2 . . . . . Scan Component 1 | . . . . . . . 1 . . . . . Repair 1 | . . . . . . . 1 . . . . . Recycling Unit Hacks . | . . . . . . . . . . . . . Scanalyzer 2 | . . . 1 . . . 1 . . . . . Retrieve Study 2 | . . . 1 . . . 1 . . . . . Garrison Access Hacks . | . . . . . . . . . . . . . Unauthorized Hacks 2 | . . . . 2 . . . . . . . . Terminals 2 | . . . . 2 . . . . . . . . Botnet 2 | . . . . 2 . . . . . . . . Fabricators . | . . . . . . . . . . . . . Repair Stations . | . . . . . . . . . . . . . Recycling Units . | . . . . . . . . . . . . . Scanalyzers . | . . . . . . . . . . . . . Garrison Access . | . . . . . . . . . . . . . Data Cores Recovered 1 | . 1 . . . . . . . . . . . Used . | . . . . . . . . . . . . . Hacking Detections 9 | . . . . 2 . . 7 . . . . . Full Trace Events 2 | . . . . . . . 2 . . . . . Feedback Events . | . . . . . . . . . . . . . Feedback Blocked . | . . . . . . . . . . . . . Robot Schematics Acquired . | . . . . . . . . . . . . . Robots Built . | . . . . . . . . . . . . . Authchips . | . . . . . . . . . . . . . Time . | . . . . . . . . . . . . . Total Robot Build Rating . | . . . . . . . . . . . . . Part Schematics Acquired . | . . . . . . . . . . . . . Parts Built . | . . . . . . . . . . . . . Authchips . | . . . . . . . . . . . . . Time . | . . . . . . . . . . . . . Total Part Build Rating . | . . . . . . . . . . . . . Part Studies Acquired 2 | . . . 1 . . . 1 . . . . . Parts Repaired 1 | . . . . . . . 1 . . . . . Time 22 | . . . . . . . 22 . . . . . Parts Recycled . | . . . . . . . . . . . . . Recycled Matter . | . . . . . . . . . . . . . Retrieved Matter . | . . . . . . . . . . . . . Retrieved Components . | . . . . . . . . . . . . . Parts Scanalyzed . | . . . . . . . . . . . . . Part Schematics Acquired . | . . . . . . . . . . . . . Parts Damaged . | . . . . . . . . . . . . . Bothacking | -11 -10 -9 -8 -7 -6 -6 -5 -5 -5 -5 -4 -4 ------------ Run | Yrd Mat Mat Mat Fac Fac DSF Fac Upp Upp War Pro Fac Used RIF Installer . | . . . . . . . . . . . . . Robots Hacked . | . . . . . . . . . . . . . Non-combat . | . . . . . . . . . . . . . Combat . | . . . . . . . . . . . . . Robot Hacks Applied . | . . . . . . . . . . . . . Relay Couplers Released . | . . . . . . . . . . . . . Fabnet Peak Effective % . | . . . . . . . . . . . . . Robots Rewired . | . . . . . . . . . . . . . Allies Hacked . | . . . . . . . . . . . . . Hacks Repelled . | . . . . . . . . . . . . . Allies | -11 -10 -9 -8 -7 -6 -6 -5 -5 -5 -5 -4 -4 -------- Run | Yrd Mat Mat Mat Fac Fac DSF Fac Upp Upp War Pro Fac Total Allies . | . . . . . . . . . . . . . Largest Group . | . . . . . . . . . . . . . Highest-Rated Group . | . . . . . . . . . . . . . Highest-Rated Ally . | . . . . . . . . . . . . . Total Orders . | . . . . . . . . . . . . . Ally Attacks . | . . . . . . . . . . . . . Total Damage . | . . . . . . . . . . . . . Kills . | . . . . . . . . . . . . . Allies Corrupted . | . . . . . . . . . . . . . Allies Melted . | . . . . . . . . . . . . . Intel | -11 -10 -9 -8 -7 -6 -6 -5 -5 -5 -5 -4 -4 ------- Run | Yrd Mat Mat Mat Fac Fac DSF Fac Upp Upp War Pro Fac Active Infowar (turns) 2114 | . 38 243 . . . 108 1342 44 . . . 339 Sensors 153 | . . . . . . . . . . . . 153 Machine Analysis 281 | . 38 243 . . . . . . . . . . Jamming 1746 | . . . . . . 108 1342 44 . . . 252 Robot Analysis Total 2 | . . 1 . 1 . . . . . . . . Derelict Logs Recovered 3 | . . . . . . . . 1 1 . 1 . Drone Launches . | . . . . . . . . . . . . . Drone Recoveries . | . . . . . . . . . . . . . Exploration | -11 -10 -9 -8 -7 -6 -6 -5 -5 -5 -5 -4 -4 ------------- Run | Yrd Mat Mat Mat Fac Fac DSF Fac Upp Upp War Pro Fac Turns Passed 7785 | 194 188 381 1152 442 14 134 1342 452 502 1775 821 388 Spaces Moved 3966 | 114 141 165 427 232 8 49 573 278 267 1034 433 245 Core 48 | 5 . . . . . . . . . 3 . 40 Treads 995 | . . 121 427 232 8 21 1 . 185 . . . Legs 1006 | 109 141 44 . . . . . . . 74 433 205 Wheels 1800 | . . . . . . 28 572 278 82 840 . . Hover 117 | . . . . . . . . . . 117 . . Flight . | . . . . . . . . . . . . . Fastest Speed 50 | 50 120 120 170 167 167 130 130 130 130 115 175 50 Average Speed 153 | 116 120 160 176 167 167 150 149 130 166 157 175 93 Slowest Speed 850 | 120 120 260 250 170 167 245 240 130 240 850 175 180 Overloaded Moves . | . . . . . . . . . . . . . Propulsion Burnouts . | . . . . . . . . . . . . . Robots Hopped . | . . . . . . . . . . . . . Potential Cave-ins 4 | . . . . . . . . . . 4 . . Cave-ins Triggered . | . . . . . . . . . . . . . Exploration Rate (%) 34 | 4 33 20 39 11 . 35 25 41 43 88 62 10 Regions Visited 12 Branch Regions 4 Pre-discovered Areas . | . . . . . . . . . . . . . Known Exits Taken 1 | . . . . . 1 . . . . . . . Unknown Exits Taken 10 | 1 1 1 1 1 . . 1 1 1 1 1 . Scrap Searched 7 | . . . . . . . . . 4 . 3 . Spaces Dug 1 | . . . . . . . . . . . . 1 Terrain Destroyed 128 | . . . . 71 . . 6 . . . 44 7 Melee 1 | . . . . . . . . . . . . 1 Projectile 14 | . . . . . . . . . . . 10 4 AOE 113 | . . . . 71 . . 6 . . . 34 2 Terrain Rammed . | . . . . . . . . . . . . . Walls Destroyed . | . . . . . . . . . . . . . Machines Disabled . | . . . . . . . . . . . . . Actions | -11 -10 -9 -8 -7 -6 -6 -5 -5 -5 -5 -4 -4 --------- Run | Yrd Mat Mat Mat Fac Fac DSF Fac Upp Upp War Pro Fac Total 5069 | 139 149 242 684 261 9 92 915 341 306 1145 462 324 Wait 534 | . 1 24 157 3 . 18 223 49 24 19 4 12 Move 3955 | 113 140 164 426 231 7 49 572 277 266 1033 432 245 Hop . | . . . . . . . . . . . . . Pick Up 82 | 4 2 17 13 3 . 4 17 . 3 17 2 . Fast Attach 41 | 6 1 5 1 1 . 2 6 1 . 14 . 4 Attach 43 | . . 4 1 3 2 1 6 . 3 12 3 8 Detach 3 | . . . . . . . . . . 1 1 1 Swap 38 | . . 1 7 6 . . 8 1 . 8 1 6 Drop 64 | . . 8 14 3 . 1 16 . 1 19 1 1 Fire 257 | 16 5 19 65 11 . 7 67 12 9 13 18 15 Melee 39 | . . . . . . . . . . 9 . 30 Ram 2 | . . . . . . 2 . . . . . . Kick . | . . . . . . . . . . . . . Crush . | . . . . . . . . . . . . . Escape Stasis 8 | . . . . . . 8 . . . . . . Rewire 3 | . . . . . . . . 1 . . . 2 Trap . | . . . . . . . . . . . . . Miscellaneous . | . . . . . . . . . . . . . Route ------- -11/Scrapyard -10/Materials -9/Materials -8/Materials -7/Factory (discovered 4 exits: *Fac / Sto / Low x2) -6/Factory -6/DSF -5/Factory -5/Upper Caves -5/Upper Caves -5/Warlord -4/Proximity Caves -4/Factory (discovered 1 exit: *Arm) History --------- Turn | Location | Event 3 | -11/Scrapyard | Discovered new exit (range 16) 195 | -11/Scrapyard | Entered Materials 196 | -10/Materials | Met a group of wandering Federalists 281 | -10/Materials | Discovered new exit (range 4) 310 | -10/Materials | Build established: Mutant 383 | -10/Materials | Entered another Materials area 383 | -9/Materials | Evolved 2 slots: Propulsion x1, Weapon x1 742 | -9/Materials | Discovered new exit (range 11) 764 | -9/Materials | Entered another Materials area 764 | -8/Materials | Evolved 2 slots: Utility x2 1252 | -8/Materials | Build established: Tank 1750 | -8/Materials | Garrison activated, responded to threat 1843 | -8/Materials | Discovered new exit (range 16) 1902 | -8/Materials | Central database locked down 1916 | -8/Materials | Entered Factory 1916 | -7/Factory | Evolved 2 slots: Propulsion x1, Utility x1 2197 | -7/Factory | Destroyed 7 combat bots 2268 | -7/Factory | Identified exit to Storage 2268 | -7/Factory | Identified exit to Lower Caves 2287 | -7/Factory | Build established: Gunner 2338 | -7/Factory | Discovered new exit (range 12) 2358 | -7/Factory | Entered another Factory area 2358 | -6/Factory | Evolved 2 slots: Power x1, Utility x1 2371 | -6/Factory | Identified exit to DSF 2372 | -6/Factory | Entered DSF 2413 | -6/DSF | Additional patrols routed to DSF 2477 | -6/DSF | Discovered new exit (range 12) 2505 | -6/DSF | Lost 4 parts (1p3n) 2506 | -6/DSF | Entered Factory 2506 | -5/Factory | Evolved 2 slots: Utility x2 2662 | -5/Factory | Build established: Tank 2686 | -5/Factory | Garrison activated, responded to threat 3206 | -5/Factory | Repaired Arm. Huge Wheel 3384 | -5/Factory | Build established: Hacker-Gunner 3812 | -5/Factory | Discovered new exit (range 16) 3823 | -5/Factory | Garrison activated, responded to threat 3848 | -5/Factory | Entered Upper Caves 4083 | -5/Upper Caves | Learned 4 Factory zone layouts 4119 | -5/Upper Caves | Build established: Hacker-Tank 4286 | -5/Upper Caves | Discovered new exit (range 11) 4300 | -5/Upper Caves | Entered another Upper Caves area 4404 | -5/Upper Caves | Attracted the attention of an 0b10 checkpoint 4498 | -5/Upper Caves | Learned Factory stockpile data 4558 | -5/Upper Caves | Encountered a Warlord checkpoint 4602 | -5/Upper Caves | Spotted B-75 Beast 4783 | -5/Upper Caves | Discovered new exit (range 10) 4802 | -5/Upper Caves | Entered Warlord 4845 | -5/Warlord | System corruption cleaned by Quarantine Array 5428 | -5/Warlord | Received a Watcher feed algorithm from an ecstatic Tinkerer 5429 | -5/Warlord | Ran a Watcher feed algorithm 5606 | -5/Warlord | Warlord's base attacked by MAIN.C 5683 | -5/Warlord | Met Warlord 5880 | -5/Warlord | Opened side exit 5954 | -5/Warlord | Spotted Striker 5956 | -5/Warlord | Warlord forces counterattacked 5957 | -5/Warlord | Spotted Striker 6051 | -5/Warlord | Core integrity fell below 50% 6094 | -5/Warlord | Lost 15 parts (2p3n5u5w) 6281 | -5/Warlord | Warlord base infiltrated, sounded retreat 6282 | -5/Warlord | Build established: Mutant 6321 | -5/Warlord | Found Prototype Hackware 6321 | -5/Warlord | Identified System Mapper 6325 | -5/Warlord | Found Prototype Processor 6325 | -5/Warlord | Identified Exp. Core Analyzer 6328 | -5/Warlord | Found Prototype Device 6328 | -5/Warlord | Identified System Purifier 6352 | -5/Warlord | Found Prototype Reactor 6352 | -5/Warlord | Identified Vortex Chain Reactor 6371 | -5/Warlord | Lost 3 allies 6523 | -5/Warlord | Discovered new exit (range 15) 6551 | -5/Warlord | Lost 8 allies 6577 | -5/Warlord | Entered Proximity Caves 6579 | -4/Proximity Caves | Spotter reported a threat 6580 | -4/Proximity Caves | Spotter reported a threat 6606 | -4/Proximity Caves | Learned Research stockpile data 6778 | -4/Proximity Caves | Spotted B-86 Titan 6844 | -4/Proximity Caves | Build established: Scavenger-Tank 7216 | -4/Proximity Caves | Build established: Scavenger-Mutant 7293 | -4/Proximity Caves | Discovered new exit (range 12) 7398 | -4/Proximity Caves | Entered Factory 7398 | -4/Factory | Evolved 2 slots: Power x1, Propulsion x1 7438 | -4/Factory | Spotted B-86 Titan 7648 | -4/Factory | Search patrols dispatched 7766 | -4/Factory | Core integrity fell below 50% 7771 | -4/Factory | Core integrity fell below 20% 7780 | -4/Factory | Discovered new exit (range 12) 7785 | -4/Factory | Identified exit to Armory 7786 | -4/Factory | Destroyed by Y-72 Warden with Quantum Rifle Last Messages --------------- 07764_ K-01 Serf collects debris. 07764_ Acquired Adv. System Shield. 07765_ R-10 Processor collects Imp. Heat Sink. 07766_ K-01 Serf collects debris. 07767_ Penetrated by Slug. 07767_ K-01 Serf destroyed. 07768_ Slug penetrates Wall. 07769_ R-10 Processor collects Arm. Medium Treads. 07769_ Imp. Cryofiber Web destroyed. 07770_ Penetrated by Slug. 07770_ Adv. System Shield destroyed. 07773_ System corrupted: Component data lost. 07780_ EXIT=FOUND 07783_ Adv. Heat Sink destroyed. 07783_ Slug penetrates Wall. 07785_ Penetrated by Slug. 07785_ Slug penetrates Machine. 07785_ K-01 Serf cleans the Machine. 07785_ EXIT=IDENTIFIED: ARMORY Map ----- +----------------------------------------------------+ | ?????????????????????????????????????????????????? | | ?????????????????????????????????????????????????? | | ?????????????????????????????????????????????????? | | ?????????????????????????????????????????????????? | | ?????????????????????????????????????????????????? | | ?????????????????????????????????????????????????? | | ?????????????????????????????????????????????????? | | ?????????????????????????????????????????????????? | | ?????????????????????????????????????????????????? | | ?????????????????????????????????????????????????? | | ?????????????????????????????????????????????????? | | ?????????????????????????????????????????????????? | | ?????????????????????????????????????????????????? | | ??????????????????????????"??????????????????????? | | ?????????????????????????"" ?????????????????????? | | ???????????????????? ????? ?????????????????????? | | ??????????????????###+#####/#######??????????????? | | ??????????????????"" g """""#??????????????? | | ??????????????????? "[["#??????????????? | | ???????????????"[??? [["#??????????????? | | ???????????????"[[???"" """ [["#??????????????? | | ??????????????#""" ?## ##" """####+####??????? | | ??????????????#" "# Y#" "# #??????? | | ??????????????+ k/ #??????? | | ??????????????+ Y > Y ; #??????? | | ??????????????+ k @ + #??????? | | ??????????????#" "# Y#" "# #??????? | | ?????????????????????## ##" """### " ?? | | ????????????????????""" """ [["#?# # "? | | ??????????????????? [["#?# #??? "? | | ??????????????????" "[["#?# #??????? | | ?????????????????""" """""#?# #??????? | | ?????????????????##########g#######?# #??????? | | ?????????????????????????? ????????# #??????? | | ?????????????????????????"" ????????# #??????? | | ????????????????????????""""????????# ###+#### | | ?????????????????????????####???????# # | | ????????????????????????????????????# # | | ????????????????????????????????????# # | | ????????????????????????????????????# # | | ????????????????????????????????????# # | | ???????????????????????????################# # | | ???????????????????????????# =# # | | ???????????????????????????# "" "" # | | ???????????????????????????# "" "" + | | ???????????????????????????# """ """ # | | ???????????????????????????#""" """ """ # | | ???????????????????????????#""" """ """ # | | ???????????????????????????#"S # | | ???????????????????????????#""" # | +----------------------------------------------------+ Best States ------------- Heat Dissipation 86 Energy Generation 71 Energy Capacity 770 Matter Stores 300 Matter Capacity 300 Sight Range 16 Robot Scan Range 19 Terrain Scan Density 10 Jamming Range 14 Base Temperature (-) 150 Armor Coverage 675 Resistance: KI 30 Resistance: TH 25 Utility Shielding 66 Evasion (%) 55 Core Analysis 11 Armor Integrity Analysis 30 Recoil Reduction 4 Offensive Hacking 20 Defensive Hacking 14 Item Schematics ----------------- None Robot Schematics ------------------ None Fabricated ------------ Nothing Repaired ---------- Arm. Huge Wheel | 37% | -5/Factory Studied --------- Field Laser | -8/Materials | Hacked Hvy. Laser | -5/Factory | Hacked Alien Tech Used ----------------- None Achievements -------------- Can't Touch This Challenges ------------ None Game ------ Seed MetafieldSignalTerminator Manual? 0 Play Time 01:23:41 Cumulative 242.5 hours Start 2026.07.29 @ 09:48:31 End 2026.07.29 @ 16:57:05 Sessions 9 Manual Loads 0 Difficulty Rogue Special Mode None Game No. 324 Rogue 324 Adventurer 0 Explorer 0 Win Type - Total 3 Types 2/0/0/1/0/0/0/0/0/0 Lore% 78 Gallery% 64 Achievement% 52 Wizard Run 0 Options --------- Layout 2 ASCII 0 Keyboard 0 Movement Mouse Keybinds 0 Fullscreen 1 Font 24/Smallcaps Map View 50x44 Zoom Use 0% Tactical HUD 1 Map Filters NONE Filters NONE Steam 1 RUN: d3ec7b0f-c1dc-426c-acf4-cbe54186360c